fUST/lending_fUST_20250219
["ID","MTS","AMOUNT","RATE_DAILY","PERIOD"]
[353519708,1739894743107,-312.44648334,0.00011309,2]
[353519709,1739894743129,-158.8405508,0.00011423,2]
[353519710,1739894743151,-196.2744193,0.00011538,2]
[353519711,1739894743174,-129.79419459,0.00012399,2]
[353519712,1739894829214,-666.71100304,0.00012338,2]
[353519713,1739894831080,-9.55075772,0.00012338,2]
[353519714,1739894831103,-193.76226367,0.00012338,2]
[353519715,1739894831130,-320.48931316,0.00012399,2]
[353519716,1739894831161,-493.12678468,0.00012399,2]
[353519717,1739894831190,-277.00522445,0.00012399,2]
[353519718,1739894832101,-222.99477555,0.00012399,2]
[353519719,1739894832132,-264.08836896,0.00012399,2]
[353519720,1739894853098,-35.91163104,0.00012399,2]
[353519721,1739894853122,-347.96474923,0.000124,2]
[353519724,1739894959211,-250.91899255,0.00011476,2]
[353519725,1739894964173,-42.64440905,0.00011476,2]
[353519726,1739894964194,-300.0,0.00012399,2]
[353519727,1739894964216,-33836.03525077,0.000124,2]
[353519728,1739894964237,-151.0,0.000124,2]
[353519729,1739894964260,-67532.90306209,0.00012438,5]
[353519730,1739895000834,400.0,9.041e-05,2]
[353519815,1739895031940,-300.0,0.00012437,2]
[353519818,1739895031950,-76716.27408412,0.00012438,5]
[353519820,1739895031960,-9199.63762815,0.00012438,5]
[353519822,1739895031970,-21302.98507748,0.00012438,2]
[353519877,1739895037820,-696.0637679,0.00012067,2]
[353519879,1739895037830,-2026.7251431,0.00012438,2]
[353519885,1739895037870,-5650.15365724,0.00012438,2]
[353519892,1739895038187,-418.32314166,0.00012438,2]
[353519928,1739895040193,-2124.09251608,0.00012438,2]
[353519930,1739895040205,-485.33,0.00012438,2]
[353519936,1739895040245,-674.64824956,0.00012438,2]
[353519942,1739895040299,-13563.52706808,0.00012438,2]
[353519945,1739895040311,-2306.22,0.00012438,2]
[353520194,1739895042878,-64308.80667306,0.00012438,2]
[353520197,1739895042889,-59272.2969189,0.00012438,2]
[353520202,1739895042931,-1330.0,0.00012438,2]
[353520468,1739895045673,-3089.40703791,0.00012438,2]
[353520475,1739895045726,-3887.691385,0.00012438,2]
[353520477,1739895045737,-9619.46040285,0.00012438,2]
[353520483,1739895045781,-2155.21991867,0.00012438,2]
[353520485,1739895045794,-542.828615,0.00012438,2]
[353520489,1739895045957,-22063.91703888,0.00012438,2]
[353521668,1739896029119,-682.36422614,0.00011748,2]
[353521669,1739896035103,-117.63577386,0.00011748,2]
[353521670,1739896035124,-542.63152735,0.00011767,2]
[353521671,1739896035146,-480.34615522,0.00011867,2]
[353521672,1739896035167,-1136.99607038,0.00011967,2]
[353521673,1739896035189,-285.39,0.00012189,2]
[353521674,1739896035211,-300.0,0.00012299,2]
[353521675,1739896035231,-855.37364481,0.000123,2]
[353521676,1739896037072,-1260.62285132,0.000123,2]
[353521677,1739896044108,-281.20317066,0.000123,2]
[353521682,1739896105617,400.0,9.041e-05,2]
[353521683,1739896113051,4353.16155501,0.00017425,120]
[353521688,1739896145277,-1030.60479174,0.000123,2]
[353521690,1739896161108,-7822.19554147,0.000123,2]
[353521691,1739896161130,-300.0,0.00012336,2]
[353521692,1739896161154,-500.0,0.00012337,2]
[353521693,1739896161175,-200.49891283,0.00012337,2]
[353521694,1739896161198,-500.0,0.00012337,2]
[353521695,1739896161221,-500.0,0.00012337,2]
[353521696,1739896161243,-500.0,0.00012337,2]
[353521697,1739896161265,-500.0,0.00012337,2]
[353521698,1739896161287,-500.0,0.00012337,2]
[353521699,1739896161308,-374.31059656,0.00012337,2]
[353521700,1739896161330,-500.0,0.00012337,2]
[353521701,1739896161352,-500.0,0.00012337,2]
[353521702,1739896161374,-500.0,0.00012337,2]
[353521703,1739896161397,-500.0,0.00012337,2]
[353521704,1739896161419,-500.0,0.00012337,2]
[353521705,1739896161442,-500.0,0.00012337,2]
[353521706,1739896161464,-500.0,0.00012337,2]
[353521707,1739896161486,-500.0,0.00012337,2]
[353521708,1739896161508,-500.0,0.00012337,2]
[353521709,1739896161530,-500.0,0.00012337,2]
[353521710,1739896161552,-500.0,0.00012337,2]
[353521711,1739896161574,-500.0,0.00012337,2]
[353521712,1739896161596,-500.0,0.00012337,2]
[353521713,1739896161618,-500.0,0.00012337,2]
[353521714,1739896161639,-500.0,0.00012337,2]
[353521715,1739896161661,-500.0,0.00012337,2]
[353521716,1739896161683,-500.0,0.00012337,2]
[353521717,1739896161705,-500.0,0.00012337,2]
[353521718,1739896161726,-384.2754647,0.00012337,2]
[353521719,1739896161747,-500.0,0.00012337,2]
[353521720,1739896161768,-500.0,0.00012337,2]
[353521721,1739896161789,-500.0,0.00012337,2]
[353521722,1739896161811,-500.0,0.00012337,2]
[353521723,1739896161833,-286.10387285,0.00012337,2]
[353521741,1739896232085,-250.0,0.00011413,2]
[353521742,1739896232095,-300.0,0.00012336,2]
[353521744,1739896232105,-150.42963386,0.00012337,2]
[353521745,1739896232115,-500.0,0.00012337,2]
[353521746,1739896232125,-500.0,0.00012337,2]
[353521747,1739896232134,-500.0,0.00012337,2]
[353521748,1739896232145,-500.0,0.00012337,2]
[353521749,1739896232155,-500.0,0.00012337,2]
[353521750,1739896232165,-500.0,0.00012337,2]
[353521751,1739896232278,-500.0,0.00012337,2]
[353521752,1739896232288,-500.0,0.00012337,2]
[353521753,1739896232298,-500.0,0.00012337,2]
[353521755,1739896232308,-500.0,0.00012337,2]
[353521756,1739896232317,-500.0,0.00012337,2]
[353521758,1739896232328,-500.0,0.00012337,2]
[353521760,1739896232337,-200.0,0.00012337,2]
[353521761,1739896232347,-500.0,0.00012337,2]
[353521763,1739896232357,-608.63558472,0.00012338,2]
[353521764,1739896232366,-256.03978832,0.00012338,2]
[353521765,1739896232376,-41765.5951004,0.00012339,5]
[353521766,1739896232386,-180.76033092,0.00012437,2]
[353521767,1739896232395,-38358.13704206,0.00012438,5]
[353521768,1739896232406,-4599.81881408,0.00012438,5]
[353521769,1739896232416,-28364.33784405,0.00012438,2]
[353521790,1739896237955,-1668.2999999,0.00012438,2]
[353521791,1739896237967,-9562.2856,0.00012438,2]
[353521792,1739896237979,-2055.69569154,0.00012438,2]
[353521793,1739896237991,-150108.67492151,0.00012438,2]
[353521794,1739896238421,-11908.17821551,0.00012438,2]
[353521807,1739896240145,-311386.384155,0.00012438,2]
[353521808,1739896240201,-595.65711148,0.00012438,2]
[353521857,1739896243094,-1453949.16430298,0.00012438,2]
[353521858,1739896243103,-1076.2,0.00012438,2]
[353521859,1739896243113,-496.68475673,0.00012438,2]
[353521860,1739896243122,-374551.85,0.00012438,2]
[353521861,1739896243132,-500.0,0.00012473,2]
[353521862,1739896243141,-158.8405508,0.00012661,2]
[353521863,1739896243150,-608.63558468,0.00012956,2]
[353521864,1739896243160,-6108.47357559,0.0001302,2]
[353521865,1739896243170,-500.0,0.00013021,2]
[353521866,1739896243179,-900.0,0.00013068,2]
[353521867,1739896243188,-355.1269712,0.00013103,2]
[353521868,1739896243198,-355.1269712,0.00013103,2]
[353521869,1739896243210,-354.7159283,0.00013103,2]
[353521870,1739896243220,-420.0,0.00013538,2]
[353521871,1739896243229,-608.63558468,0.00013574,2]
[353521872,1739896243239,-500.91068453,0.00013698,2]
[353521874,1739896243249,-502.36438095,0.00013698,2]
[353521876,1739896243259,-501.42280111,0.00013698,2]
[353521878,1739896243269,-500.0,0.00013698,2]
[353521880,1739896243279,-500.0,0.00013698,2]
[353521882,1739896243288,-500.0,0.00013698,2]
[353521884,1739896243297,-500.0,0.00013698,2]
[353521886,1739896243306,-500.0,0.00013698,2]
[353521888,1739896243316,-503.63709508,0.00013698,2]
[353521890,1739896243326,-500.0,0.00013698,2]
[353521894,1739896243427,-500.0,0.00013698,2]
[353521895,1739896243438,-500.0,0.00013698,2]
[353521896,1739896243448,-500.0,0.00013698,2]
[353521897,1739896243461,-579.38244099,0.00013698,2]
[353521898,1739896243470,-500.0,0.00013698,2]
[353521899,1739896243480,-500.0,0.00013698,2]
[353521900,1739896243490,-500.0,0.00013698,2]
[353521901,1739896243499,-500.0,0.00013698,2]
[353521902,1739896243509,-500.0,0.00013698,2]
[353521903,1739896243519,-500.0,0.00013698,2]
[353521904,1739896243528,-500.0,0.00013698,2]
[353521905,1739896243538,-500.0,0.00013698,2]
[353521906,1739896243548,-500.0,0.00013698,2]
[353521907,1739896243558,-500.0,0.00013698,2]
[353521908,1739896243567,-238.91887548,0.00013698,2]
[353521909,1739896243576,-500.51292824,0.00013698,2]
[353521910,1739896243586,-500.0,0.00013698,2]
[353521911,1739896243595,-500.0,0.00013698,2]
[353521912,1739896243605,-500.0,0.00013698,2]
[353521913,1739896243614,-500.0,0.00013698,2]
[353521914,1739896243624,-500.0,0.00013698,2]
[353521915,1739896243633,-500.0,0.00013698,2]
[353521916,1739896243643,-561.90595037,0.00013698,2]
[353521917,1739896243652,-500.0,0.00013698,2]
[353521918,1739896243662,-500.0,0.00013698,2]
[353521919,1739896243672,-500.0,0.00013698,2]
[353521920,1739896243682,-500.0,0.00013698,2]
[353521921,1739896243692,-513.82727135,0.00013698,2]
[353521922,1739896243702,-500.0,0.00013698,2]
[353521923,1739896243712,-500.0,0.00013698,2]
[353521924,1739896243721,-506.40580424,0.00013698,2]
[353521925,1739896243731,-500.0,0.00013698,2]
[353521926,1739896243741,-500.0,0.00013698,2]
[353521927,1739896243751,-500.0,0.00013698,2]
[353521928,1739896243761,-500.0,0.00013698,2]
[353521929,1739896243770,-500.0,0.00013698,2]
[353521930,1739896243779,-500.0,0.00013698,2]
[353521931,1739896243789,-501.04806849,0.00013698,2]
[353521932,1739896243799,-500.0,0.00013698,2]
[353521933,1739896243810,-500.0,0.00013698,2]
[353521934,1739896243820,-500.0,0.00013698,2]
[353521935,1739896243830,-489.72255846,0.00013698,2]
[353521936,1739896243839,-500.0,0.00013698,2]
[353521937,1739896243849,-500.81485506,0.00013698,2]
[353521938,1739896243858,-500.0,0.00013698,2]
[353521939,1739896243869,-500.0,0.00013698,2]
[353521940,1739896243878,-500.0,0.00013698,2]
[353521941,1739896243887,-501.44079961,0.00013698,2]
[353521942,1739896243896,-500.0,0.00013698,2]
[353521943,1739896243905,-500.0,0.00013698,2]
[353521944,1739896243915,-498.10411139,0.00013698,2]
[353521945,1739896243925,-500.0,0.00013698,2]
[353521946,1739896243936,-500.0,0.00013698,2]
[353521947,1739896243947,-507.09019103,0.00013698,2]
[353521948,1739896243962,-500.99320311,0.00013698,2]
[353521949,1739896243972,-500.0,0.00013698,2]
[353521950,1739896243983,-207.01405791,0.00013698,2]
[353521951,1739896243992,-271.0707789,0.00013698,2]
[353521952,1739896244003,-500.0,0.00013698,2]
[353521953,1739896244012,-500.0,0.00013698,2]
[353521954,1739896244022,-222.91450135,0.00013698,2]
[353521955,1739896244031,-500.0,0.00013698,2]
[353521956,1739896244042,-506.23186168,0.00013698,2]
[353521957,1739896244052,-500.0,0.00013698,2]
[353521958,1739896244062,-500.0,0.00013698,2]
[353521959,1739896244072,-500.0,0.00013698,2]
[353521960,1739896244081,-500.0,0.00013698,2]
[353521961,1739896244092,-298.05208723,0.00013698,2]
[353521962,1739896244102,-500.0,0.00013698,2]
[353521963,1739896244111,-500.0,0.00013698,2]
[353521964,1739896244121,-500.0,0.00013698,2]
[353521965,1739896244130,-500.0,0.00013698,2]
[353521966,1739896244141,-500.0,0.00013698,2]
[353521967,1739896244151,-500.0,0.00013698,2]
[353521968,1739896244160,-500.0,0.00013698,2]
[353521969,1739896244170,-500.96141064,0.00013698,2]
[353521970,1739896244180,-238.67303768,0.00013698,2]
[353521971,1739896244189,-547.87103451,0.00013698,2]
[353521972,1739896244199,-500.0,0.00013698,2]
[353521973,1739896244211,-500.0,0.00013698,2]
[353521974,1739896244221,-500.0,0.00013698,2]
[353521975,1739896244231,-500.0,0.00013698,2]
[353521976,1739896244241,-500.0,0.00013698,2]
[353521977,1739896244251,-500.0,0.00013698,2]
[353521978,1739896244260,-500.0,0.00013698,2]
[353521979,1739896244270,-192.70721221,0.00013698,2]
[353521980,1739896244279,-503.91224736,0.00013698,2]
[353521981,1739896244289,-500.0,0.00013698,2]
[353521982,1739896244299,-500.0,0.00013698,2]
[353521983,1739896244308,-599.35161429,0.00013698,2]
[353521984,1739896244318,-507.25283716,0.00013698,2]
[353521985,1739896244328,-500.0,0.00013698,2]
[353521986,1739896244338,-267.41717989,0.00013698,2]
[353521987,1739896244347,-500.57141468,0.00013698,2]
[353521988,1739896244357,-500.0,0.00013698,2]
[353521989,1739896244367,-500.0,0.00013698,2]
[353521990,1739896244377,-500.0,0.00013698,2]
[353521991,1739896244387,-500.0,0.00013698,2]
[353521992,1739896244397,-500.0,0.00013698,2]
[353521993,1739896244407,-500.0,0.00013698,2]
[353521994,1739896244417,-500.0,0.00013698,2]
[353521995,1739896244427,-249.45076571,0.00013698,2]
[353521996,1739896244436,-500.0,0.00013698,2]
[353521997,1739896244447,-500.0,0.00013698,2]
[353521998,1739896244461,-502.09228693,0.00013698,2]
[353521999,1739896244471,-500.0,0.00013698,2]
[353522000,1739896244482,-500.0,0.00013698,2]
[353522001,1739896244493,-500.61116275,0.00013698,2]
[353522002,1739896244502,-500.0,0.00013698,2]
[353522003,1739896244511,-500.0,0.00013698,2]
[353522004,1739896244521,-501.42871998,0.00013698,2]
[353522005,1739896244530,-500.0,0.00013698,2]
[353522006,1739896244539,-500.0,0.00013698,2]
[353522007,1739896244549,-500.0,0.00013698,2]
[353522008,1739896244558,-500.0,0.00013698,2]
[353522009,1739896244568,-377.08332778,0.00013698,2]
[353522010,1739896244577,-500.0,0.00013698,2]
[353522011,1739896244587,-500.0,0.00013698,2]
[353522012,1739896244596,-501.13602181,0.00013698,2]
[353522013,1739896244606,-500.0,0.00013698,2]
[353522014,1739896244616,-500.0,0.00013698,2]
[353522015,1739896244625,-500.0,0.00013698,2]
[353522016,1739896244635,-500.0,0.00013698,2]
[353522017,1739896244646,-501.30693505,0.00013698,2]
[353522018,1739896244655,-500.0,0.00013698,2]
[353522019,1739896244665,-502.97426491,0.00013698,2]
[353522020,1739896244675,-500.0,0.00013698,2]
[353522021,1739896244684,-500.18575474,0.00013698,2]
[353522022,1739896244694,-294.5230536,0.00013698,2]
[353522023,1739896244803,-206.91485329,0.00013698,2]
[353522024,1739896244813,-500.0,0.00013698,2]
[353522025,1739896244824,-500.0,0.00013698,2]
[353522026,1739896244834,-123.08514671,0.00013698,2]
[353522042,1739896245910,-376.91485329,0.00013698,2]
[353522043,1739896245920,-543.95,0.00013698,2]
[353522044,1739896245929,-203.6961518,0.00013698,2]
[353522045,1739896245941,-500.78189368,0.00013698,2]
[353522046,1739896245953,-500.95849854,0.00013698,2]
[353522047,1739896245963,-501.08108455,0.00013698,2]
[353522048,1739896245972,-500.58334018,0.00013698,2]
[353522049,1739896245983,-501.00285525,0.00013698,2]
[353522050,1739896245994,-500.0,0.00013698,2]
[353522051,1739896246004,-501.19485789,0.00013698,2]
[353522052,1739896246015,-577.48,0.00013698,2]
[353522053,1739896246024,-500.0,0.00013698,2]
[353522055,1739896246035,-485.0155381,0.00013698,2]
[353522056,1739896246132,-500.0,0.00013698,2]
[353522057,1739896246142,-500.50899827,0.00013698,2]
[353522058,1739896246154,-500.0,0.00013698,2]
[353522059,1739896246164,-500.0,0.00013698,2]
[353522060,1739896246175,-500.78384974,0.00013698,2]
[353522061,1739896246186,-500.0,0.00013698,2]
[353522062,1739896246197,-500.0,0.00013698,2]
[353522063,1739896246210,-500.0,0.00013698,2]
[353522064,1739896246221,-500.0,0.00013698,2]
[353522065,1739896246231,-500.96818134,0.00013698,2]
[353522066,1739896246241,-500.0,0.00013698,2]
[353522067,1739896246251,-500.0,0.00013698,2]
[353522068,1739896246261,-398.56473276,0.00013698,2]
[353522069,1739896246270,-500.0,0.00013698,2]
[353522070,1739896246280,-288.74481256,0.00013698,2]
[353522071,1739896246296,-469.85518744,0.00013698,2]
[353522072,1739896246306,-505.33559879,0.00013698,2]
[353522073,1739896246316,-500.0,0.00013698,2]
[353522074,1739896246327,-500.0,0.00013698,2]
[353522075,1739896246337,-244.75707229,0.00013698,2]
[353522076,1739896246347,-500.0,0.00013698,2]
[353522077,1739896246358,-731.38,0.00013698,2]
[353522078,1739896246369,-500.0,0.00013698,2]
[353522079,1739896246379,-500.0,0.00013698,2]
[353522080,1739896246389,-500.0,0.00013698,2]
[353522081,1739896246400,-500.0,0.00013698,2]
[353522082,1739896246410,-500.0,0.00013698,2]
[353522083,1739896246421,-500.0,0.00013698,2]
[353522084,1739896246431,-500.0,0.00013698,2]
[353522085,1739896246441,-500.0,0.00013698,2]
[353522086,1739896246451,-500.0,0.00013698,2]
[353522087,1739896246463,-500.0,0.00013698,2]
[353522088,1739896246473,-500.0,0.00013698,2]
[353522089,1739896246483,-500.0,0.00013698,2]
[353522090,1739896246492,-500.0,0.00013698,2]
[353522091,1739896246502,-500.0,0.00013698,2]
[353522092,1739896246513,-500.0,0.00013698,2]
[353522093,1739896246523,-500.0,0.00013698,2]
[353522094,1739896246533,-506.67497748,0.00013698,2]
[353522095,1739896246543,-500.0,0.00013698,2]
[353522096,1739896246553,-500.0,0.00013698,5]
[353522097,1739896246563,-500.0,0.00013698,2]
[353522098,1739896246573,-500.0,0.00013698,2]
[353522099,1739896246583,-228.72462489,0.00013698,2]
[353522100,1739896246592,-500.0,0.00013698,2]
[353522101,1739896246602,-500.0,0.00013698,2]
[353522102,1739896246612,-500.0,0.00013698,2]
[353522103,1739896246622,-500.0,0.00013698,2]
[353522104,1739896246632,-500.0,0.00013698,2]
[353522105,1739896246642,-503.35012541,0.00013698,2]
[353522106,1739896246652,-500.0,0.00013698,2]
[353522107,1739896246661,-500.0,0.00013698,2]
[353522108,1739896246671,-500.0,0.00013698,2]
[353522109,1739896246680,-500.0,0.00013698,2]
[353522110,1739896246690,-629.58710235,0.00013698,2]
[353522111,1739896246700,-500.0,0.00013698,2]
[353522112,1739896246711,-500.0,0.00013698,2]
[353522113,1739896246720,-500.0,0.00013698,2]
[353522114,1739896246730,-500.0,0.00013698,2]
[353522115,1739896246739,-500.0,0.00013698,2]
[353522116,1739896246748,-500.0,0.00013698,2]
[353522117,1739896246758,-856.17,0.00013698,2]
[353522118,1739896246767,-500.0,0.00013698,2]
[353522119,1739896246777,-500.0,0.00013698,2]
[353522120,1739896246787,-500.0,0.00013698,2]
[353522121,1739896246796,-500.0,0.00013698,2]
[353522122,1739896246805,-500.0,0.00013698,2]
[353522123,1739896246815,-500.0,0.00013698,2]
[353522124,1739896246824,-500.0,0.00013698,2]
[353522125,1739896246834,-500.0,0.00013698,2]
[353522126,1739896246843,-500.0,0.00013698,2]
[353522127,1739896246853,-500.0,0.00013698,2]
[353522128,1739896246863,-500.0,0.00013698,2]
[353522129,1739896246872,-500.0,0.00013698,2]
[353522130,1739896246881,-500.0,0.00013698,2]
[353522131,1739896246891,-500.0,0.00013698,2]
[353522132,1739896246901,-500.0,0.00013698,2]
[353522133,1739896246911,-500.0,0.00013698,2]
[353522134,1739896246920,-500.0,0.00013698,2]
[353522135,1739896246929,-500.0,0.00013698,2]
[353522136,1739896246939,-500.0,0.00013698,2]
[353522137,1739896246948,-500.0,0.00013698,2]
[353522138,1739896246963,-500.0,0.00013698,2]
[353522139,1739896246973,-500.0,0.00013698,2]
[353522140,1739896246983,-500.0,0.00013698,2]
[353522141,1739896246992,-500.0,0.00013698,2]
[353522142,1739896247003,-502.31171081,0.00013698,2]
[353522143,1739896247013,-500.0,0.00013698,2]
[353522144,1739896247022,-500.0,0.00013698,2]
[353522145,1739896247033,-500.0,0.00013698,2]
[353522146,1739896247042,-511.61979312,0.00013698,2]
[353522147,1739896247052,-500.0,0.00013698,2]
[353522148,1739896247061,-647.3601867,0.00013698,2]
[353522149,1739896247071,-500.0,0.00013698,2]
[353522150,1739896247081,-500.0,0.00013698,2]
[353522151,1739896247090,-500.0,0.00013698,2]
[353522152,1739896247100,-500.0,0.00013698,2]
[353522153,1739896247109,-500.0,0.00013698,2]
[353522154,1739896247119,-1226.02,0.00013698,2]
[353522155,1739896247128,-500.0,0.00013698,2]
[353522156,1739896247137,-500.0,0.00013698,2]
[353522157,1739896247146,-500.0,0.00013698,2]
[353522158,1739896247155,-500.0,0.00013698,2]
[353522159,1739896247164,-500.0,0.00013698,2]
[353522160,1739896247174,-500.0,0.00013698,2]
[353522161,1739896247183,-500.0,0.00013698,2]
[353522162,1739896247192,-500.0,0.00013698,2]
[353522163,1739896247201,-500.0,0.00013698,2]
[353522164,1739896247213,-500.0,0.00013698,2]
[353522165,1739896247223,-500.0,0.00013698,2]
[353522166,1739896247232,-500.0,0.00013698,2]
[353522167,1739896247242,-500.0,0.00013698,2]
[353522168,1739896247251,-500.0,0.00013698,2]
[353522169,1739896247261,-500.0,0.00013698,2]
[353522170,1739896247271,-500.0,0.00013698,2]
[353522171,1739896247282,-500.0,0.00013698,2]
[353522172,1739896247291,-500.0,0.00013698,2]
[353522173,1739896247301,-500.0,0.00013698,2]
[353522174,1739896247310,-500.0,0.00013698,2]
[353522175,1739896247320,-500.0,0.00013698,2]
[353522176,1739896247329,-500.0,0.00013698,2]
[353522177,1739896247339,-500.0,0.00013698,2]
[353522178,1739896247348,-500.0,0.00013698,2]
[353522179,1739896247358,-500.0,0.00013698,2]
[353522180,1739896247367,-500.0,0.00013698,2]
[353522181,1739896247377,-500.0,0.00013698,2]
[353522182,1739896247386,-500.0,0.00013698,2]
[353522183,1739896247395,-500.0,0.00013698,2]
[353522184,1739896247404,-501.9928747,0.00013698,2]
[353522185,1739896247414,-500.0,0.00013698,2]
[353522186,1739896247424,-500.0,0.00013698,2]
[353522187,1739896247433,-500.0,0.00013698,2]
[353522188,1739896247443,-333.73388459,0.00013698,2]
[353522189,1739896247454,-500.0,0.00013698,2]
[353522190,1739896247464,-503.07941548,0.00013698,2]
[353522191,1739896247474,-500.0,0.00013698,2]
[353522192,1739896247483,-500.0,0.00013698,2]
[353522193,1739896247493,-500.0,0.00013698,2]
[353522194,1739896247502,-500.0,0.00013698,2]
[353522195,1739896247512,-500.0,0.00013698,2]
[353522196,1739896247521,-423.1100184,0.00013698,2]
[353522197,1739896247531,-500.0,0.00013698,2]
[353522198,1739896247540,-504.15662806,0.00013698,2]
[353522199,1739896247550,-500.0,0.00013698,2]
[353522200,1739896247559,-500.0,0.00013698,2]
[353522201,1739896247569,-500.0,0.00013698,2]
[353522202,1739896247578,-500.0,0.00013698,2]
[353522203,1739896247588,-500.0,0.00013698,2]
[353522204,1739896247598,-506.8653308,0.00013698,2]
[353522205,1739896247608,-500.0,0.00013698,2]
[353522206,1739896247618,-500.0,0.00013698,2]
[353522207,1739896247628,-500.0,0.00013698,2]
[353522208,1739896247637,-245.75490726,0.00013698,2]
[353522209,1739896247648,-500.0,0.00013698,2]
[353522210,1739896247658,-500.0,0.00013698,2]
[353522211,1739896247670,-500.0,0.00013698,2]
[353522212,1739896247679,-500.0,0.00013698,2]
[353522213,1739896247688,-260.07588814,0.00013698,2]
[353522214,1739896247698,-500.0,0.00013698,2]
[353522215,1739896247709,-500.0,0.00013698,2]
[353522216,1739896247720,-500.0,0.00013698,2]
[353522217,1739896247730,-500.0,0.00013698,2]
[353522218,1739896247740,-500.0,0.00013698,2]
[353522219,1739896247750,-450.15024918,0.00013698,2]
[353522220,1739896247760,-288.91763651,0.00013698,2]
[353522221,1739896247770,-500.0,0.00013698,2]
[353522222,1739896247780,-500.0,0.00013698,2]
[353522223,1739896247790,-500.0,0.00013698,2]
[353522224,1739896247800,-500.0,0.00013698,2]
[353522225,1739896247809,-500.0,0.00013698,2]
[353522226,1739896247819,-500.0,0.00013698,2]
[353522227,1739896247828,-500.0,0.00013698,2]
[353522228,1739896247910,-500.0,0.00013698,2]
[353522229,1739896247920,-500.0,0.00013698,2]
[353522230,1739896247930,-500.0,0.00013698,2]
[353522231,1739896247940,-500.0,0.00013698,2]
[353522232,1739896247956,-500.0,0.00013698,2]
[353522233,1739896247966,-665.95,0.00013698,2]
[353522234,1739896247976,-500.0,0.00013698,2]
[353522235,1739896247987,-500.0,0.00013698,2]
[353522236,1739896247996,-463.07308,0.00013698,2]
[353522237,1739896248014,-36.92692,0.00013698,2]
[353522238,1739896248024,-500.0,0.00013698,2]
[353522239,1739896248035,-500.0,0.00013698,2]
[353522240,1739896248045,-500.0,0.00013698,2]
[353522241,1739896248055,-29.376433,0.00013698,2]
[353522242,1739896248074,-470.623567,0.00013698,2]
[353522243,1739896248084,-500.0,0.00013698,2]
[353522244,1739896248094,-152.137845,0.00013698,2]
[353522245,1739896248106,-500.0,0.00013698,2]
[353522246,1739896248115,-500.0,0.00013698,2]
[353522247,1739896248125,-436.41331482,0.00013698,2]
[353522248,1739896248135,-500.0,0.00013698,2]
[353522249,1739896248145,-500.0,0.00013698,2]
[353522250,1739896248155,-1916.03,0.00013698,2]
[353522251,1739896248165,-500.0,0.00013698,2]
[353522252,1739896248175,-500.0,0.00013698,2]
[353522253,1739896248185,-643.43969972,0.00013698,2]
[353522254,1739896248195,-500.0,0.00013698,2]
[353522255,1739896248206,-500.0,0.00013698,2]
[353522256,1739896248215,-1444.54557346,0.00013698,2]
[353522257,1739896248227,-1671.0000001,0.00013698,2]
[353522258,1739896248239,-1716.09442644,0.00013698,2]
[353522259,1739896248249,-500.0,0.00013698,2]
[353522260,1739896248258,-500.0,0.00013698,2]
[353522261,1739896248268,-1331.90457356,0.00013698,2]
[353522264,1739897154096,-803.70651403,0.00012808,2]
[353522265,1739897162245,400.0,9.041e-05,2]